bitfinex-derivatives/quotes_SOLF0:USTF0_20241026
["timestamp","ask_amount","ask_price","bid_price","bid_amount"]
[1729939594841,2.9532,169.49,169.44,8.17519003]
[1729939595041,11.12839003,169.49,169.44,8.17519003]
[1729939595540,8.17519003,169.48,169.44,8.17519003]
[1729939596343,11.12859003,169.48,169.44,8.17519003]
[1729939596949,8.17519003,169.48,169.44,8.17519003]
[1729939597245,8.17519003,169.46,169.41,8.17519003]
[1729939598150,8.17519003,169.46,169.41,11.12949003]
[1729939599445,2.9534,169.48,169.41,11.12949003]
[1729939599646,8.17519003,169.46,169.41,11.12949003]
[1729939600044,8.17519003,169.46,169.42,11.12949003]
[1729939601852,8.17519003,169.46,169.42,2.9543]
[1729939602053,8.17519003,169.46,169.42,11.12949003]
[1729939604554,8.17519003,169.49,169.44,2.9539]
[1729939604858,8.17519003,169.49,169.44,11.12909003]
[1729939606256,8.17519003,169.49,169.44,2.9539]
[1729939607259,8.17519003,169.47,169.43,8.17519003]
[1729939607452,2.9532,169.49,169.42,11.12929003]
[1729939607659,8.17519003,169.47,169.42,11.12929003]
[1729939615765,8.17519003,169.47,169.4,4.5]
[1729939615967,2.9536,169.47,169.41,8.17519003]
[1729939616167,8.17519003,169.46,169.41,8.17519003]
[1729939619072,11.12879003,169.47,169.41,11.12959003]
[1729939619573,8.17519003,169.47,169.41,11.12959003]
[1729939619769,8.17519003,169.47,169.42,8.17519003]
[1729939620260,4.5,169.5,169.44,8.17519003]
[1729939620457,4.5,169.5,169.43,2.954]
[1729939620458,11.12829003,169.49,169.43,2.954]
[1729939620664,8.17519003,169.46,169.41,8.17519003]
[1729939620971,8.17519003,169.45,169.4,15.62979003]
[1729939621757,8.17519003,169.45,169.41,2.9545]
[1729939622870,4.1825,169.49,169.43,8.17519003]
[1729939623063,8.17519003,169.48,169.43,8.17519003]
[1729939623369,8.17519003,169.47,169.42,8.17519003]
[1729939625867,8.17519003,169.45,169.41,2.9543]
[1729939627062,11.12869003,169.47,169.41,11.12949003]
[1729939627370,11.12869003,169.47,169.42,1.47745592]
[1729939627566,11.12869003,169.47,169.41,11.12949003]
[1729939627764,11.12869003,169.47,169.42,1.47742985]
[1729939627968,11.12869003,169.47,169.41,11.12949003]
[1729939628169,11.12869003,169.47,169.42,1.477447]
[1729939628471,11.12869003,169.47,169.43,1.477447]
[1729939628672,11.12869003,169.47,169.41,11.12949003]
[1729939628872,11.12869003,169.47,169.42,1.47745441]
[1729939629070,11.12869003,169.47,169.43,1.47745441]
[1729939629266,11.12869003,169.47,169.41,11.12949003]
[1729939629472,11.12869003,169.47,169.42,1.47745441]
[1729939629666,11.12869003,169.47,169.43,1.47745441]
[1729939629864,11.12869003,169.47,169.41,11.12949003]
[1729939630271,8.17519003,169.43,169.42,1.47745592]
[1729939630466,8.17519003,169.43,169.38,4.5]
[1729939630671,8.17519003,169.43,169.39,1.47763075]
[1729939630870,8.17519003,169.43,169.4,1.47763075]
[1729939631067,8.17519003,169.43,169.41,1.47763075]
[1729939631272,8.17519003,169.43,169.38,7.4548]
[1729939631472,8.17519003,169.43,169.39,1.47765339]
[1729939631672,8.17519003,169.43,169.4,1.47765339]
[1729939631875,8.17519003,169.43,169.41,1.47765339]
[1729939632076,8.17519003,169.43,169.38,12.67519003]
[1729939632274,8.17519003,169.43,169.39,1.47769969]
[1729939632471,8.17519003,169.43,169.4,1.47769969]
[1729939632680,8.17519003,169.43,169.41,1.47769969]
[1729939632871,8.17519003,169.43,169.38,12.67519003]
[1729939633180,8.17519003,169.43,169.39,1.47770754]
[1729939633373,8.17519003,169.43,169.4,1.47770754]
[1729939633678,8.17519003,169.43,169.41,1.47770754]
[1729939633871,8.17519003,169.43,169.38,15.63009003]
[1729939634073,8.17519003,169.43,169.39,1.47770602]
[1729939634272,8.17519003,169.43,169.4,1.47770602]
[1729939634476,8.17519003,169.43,169.41,1.47770602]
[1729939634672,8.17519003,169.43,169.38,15.63009003]
[1729939634871,8.17519003,169.43,169.39,1.47770602]
[1729939635073,8.17519003,169.43,169.4,1.47770602]
[1729939635274,8.17519003,169.43,169.41,1.47770602]
[1729939635573,11.12929003,169.43,169.38,8.17519003]
[1729939635777,11.12929003,169.43,169.39,1.47770773]
[1729939636080,8.17519003,169.43,169.4,1.47770773]
[1729939636870,8.17519003,169.43,169.38,8.17519003]
[1729939637074,8.17519003,169.43,169.39,1.47774136]
[1729939638580,8.17519003,169.43,169.4,1.47774136]
[1729939638784,8.17519003,169.43,169.38,11.13009003]
[1729939638982,8.17519003,169.43,169.39,1.47774072]
[1729939639178,8.17519003,169.43,169.4,1.47774072]
[1729939639482,8.17519003,169.43,169.37,2.9551]
[1729939639683,8.17519003,169.43,169.38,1.47773572]
[1729939639884,8.17519003,169.43,169.39,1.47773572]
[1729939640078,11.12929003,169.43,169.4,1.47773572]
[1729939640283,11.12929003,169.43,169.37,11.13029003]
[1729939640483,11.12929003,169.43,169.38,1.4777342]
[1729939640683,8.17519003,169.42,169.39,1.4777342]
[1729939640881,4.5,169.46,169.4,1.4777342]
[1729939641089,8.17519003,169.45,169.41,9.65284189]
[1729939641291,8.17519003,169.45,169.41,8.17519003]
[1729939643290,4.1825,169.49,169.44,8.17519003]
[1729939643594,16.85769003,169.49,169.44,8.17519003]
[1729939643790,5.7293,169.49,169.44,11.12909003]
[1729939643987,13.90449003,169.49,169.44,11.12909003]
[1729939644392,227.73096604,169.51,169.45,8.17519003]
[1729939644690,227.73096604,169.51,169.47,8.17519003]
[1729939645286,8.17519003,169.55,169.5,8.17519003]
[1729939645593,5.7042,169.56,169.52,8.17519003]
[1729939645897,1.2042,169.56,169.52,8.17519003]
[1729939646195,4.5,169.57,169.53,8.17519003]
[1729939646382,4.5,169.57,169.53,11.12749003]
[1729939646586,2.9514,169.59,169.49,2.4973]
[1729939646587,8.17519003,169.59,169.54,8.17519003]
[1729939646788,8.17519003,169.59,169.54,11.12739003]
[1729939647188,8.17519003,169.59,169.54,8.17519003]
[1729939647389,8.17519003,169.58,169.53,8.17519003]
[1729939647690,8.17519003,169.54,169.5,4.5]
[1729939649094,8.17519003,169.54,169.49,10.67249003]
[1729939649294,8.17519003,169.51,169.45,1.2704]
[1729939649598,8.17519003,169.49,169.45,8.17519003]
[1729939650198,8.17519003,169.49,169.46,1.47716908]
[1729939650496,8.17519003,169.49,169.45,8.17519003]
[1729939651601,8.17519003,169.49,169.44,12.67519003]
[1729939651795,8.17519003,169.49,169.45,1.47720553]
[1729939652092,8.17519003,169.49,169.44,12.67519003]
[1729939652293,8.17519003,169.5,169.45,9.65239556]
[1729939652491,8.17519003,169.51,169.47,8.17519003]
[1729939655895,8.17519003,169.5,169.45,8.17519003]
[1729939656101,8.17519003,169.5,169.46,1.47719343]
[1729939656301,8.17519003,169.5,169.45,8.17519003]
[1729939656503,8.17519003,169.5,169.46,1.47719343]
[1729939656703,8.17519003,169.5,169.45,8.17519003]
[1729939656903,8.17519003,169.5,169.46,1.47719343]
[1729939657095,8.17519003,169.5,169.45,8.17519003]
[1729939657295,8.17519003,169.5,169.46,1.47719343]
[1729939657496,8.17519003,169.5,169.45,8.17519003]
[1729939657797,8.17519003,169.5,169.46,1.47719495]
[1729939657991,2.9527,169.51,169.46,8.17519003]
[1729939658191,8.17519003,169.5,169.45,8.17519003]
[1729939658395,8.17519003,169.5,169.46,1.47719343]
[1729939658597,8.17519003,169.5,169.45,8.17519003]
[1729939658798,8.17519003,169.5,169.46,1.47718692]
[1729939659000,8.17519003,169.5,169.45,8.17519003]
[1729939659199,8.17519003,169.5,169.46,1.47718692]
[1729939659401,8.17519003,169.5,169.45,8.17519003]
[1729939659602,8.17519003,169.5,169.46,1.47719343]
[1729939659908,8.17519003,169.5,169.45,8.17519003]
[1729939660099,8.17519003,169.5,169.46,1.47719343]
[1729939660300,8.17519003,169.5,169.45,8.17519003]
[1729939660499,8.17519003,169.5,169.46,1.47718692]
[1729939660803,8.17519003,169.5,169.45,8.17519003]
[1729939661102,11.12819003,169.5,169.45,8.17519003]
[1729939661301,8.17519003,169.5,169.45,8.17519003]
[1729939661502,8.17519003,169.5,169.44,7.0589]
[1729939661503,2.9532,169.49,169.44,15.23409003]
[1729939661697,8.17519003,169.46,169.43,4.5]
[1729939661905,4.5,169.51,169.44,1.47737055]
[1729939662203,8.17519003,169.45,169.4,8.17519003]
[1729939662505,8.17519003,169.45,169.41,1.47744804]
[1729939662703,8.17519003,169.45,169.42,1.47744804]
[1729939662903,8.17519003,169.45,169.4,12.67519003]
[1729939663101,8.17519003,169.45,169.41,1.47751217]
[1729939663308,11.12899003,169.45,169.42,1.47751217]
[1729939663502,4.5,169.51,169.38,8.17519003]
[1729939663807,8.17519003,169.43,169.39,5.97765359]
[1729939664005,8.17519003,169.43,169.4,1.47765359]
[1729939664205,8.17519003,169.43,169.39,4.5]
[1729939664507,11.12949003,169.43,169.4,1.47766219]
[1729939664704,11.12949003,169.43,169.38,8.17519003]
[1729939664906,8.17519003,169.41,169.34,1.3045]
[1729939665208,8.17519003,169.4,169.35,1.47801147]
[1729939665401,8.17519003,169.4,169.34,1.3045]
[1729939665802,8.17519003,169.38,169.35,1.4781376]
[1729939666002,8.17519003,169.38,169.34,1.3045]
[1729939666407,8.17519003,169.38,169.33,10.63669003]
[1729939666710,4.5,169.42,169.33,2.4615]
[1729939666711,8.17519003,169.36,169.33,2.4615]
[1729939669002,8.17519003,169.36,169.31,8.17519003]
[1729939669199,2.9554,169.36,169.31,8.17519003]
[1729939669399,8.17519003,169.35,169.3,12.67519003]
[1729939670202,11.13079003,169.35,169.3,12.67519003]
[1729939672313,2.9557,169.34,169.3,12.67519003]
[1729939673309,2.9557,169.34,169.3,8.17519003]
[1729939675211,2.9562,169.31,169.27,4.5]
[1729939675410,2.9562,169.31,169.27,12.67519003]
[1729939675811,2.9564,169.3,169.26,8.17519003]
[1729939677215,2.9564,169.3,169.25,5.7187]
[1729939677514,2.9564,169.3,169.26,8.17519003]
[1729939677814,11.13159003,169.3,169.25,9.39389003]
[1729939679310,2.9564,169.3,169.25,9.39389003]
[1729939679512,2.9564,169.3,169.26,8.17519003]
[1729939680013,8.17519003,169.31,169.26,8.17519003]
[1729939680212,11.13139003,169.31,169.26,8.17519003]
[1729939680405,8.17519003,169.31,169.26,8.17519003]
[1729939681406,2.9564,169.3,169.26,8.17519003]
[1729939681615,8.17519003,169.31,169.26,8.17519003]
[1729939681917,2.9564,169.3,169.26,8.17519003]
[1729939682312,8.17519003,169.3,169.25,5.7187]
[1729939682513,2.9566,169.29,169.26,8.17519003]
[1729939683714,2.9569,169.27,169.23,4.5]
[1729939684017,2.9569,169.27,169.23,8.17519003]
[1729939684713,2.9573,169.25,169.21,145.86179656]
[1729939685109,11.13249003,169.25,169.21,137.68660653]
[1729939685623,11.13229003,169.26,169.21,145.86179656]
[1729939685813,2.9571,169.26,169.21,145.86179656]
[1729939687616,8.17519003,169.24,169.2,2.418]
[1729939688115,2.9578,169.22,169.2,2.418]
[1729939688314,11.13299003,169.22,169.17,1.2303]
[1729939688821,11.13299003,169.22,169.18,8.17519003]
[1729939689618,11.13299003,169.22,169.15,2.959]
[1729939689812,11.13299003,169.22,169.17,8.17519003]
[1729939691516,1.2288,169.28,169.2,8.17519003]
[1729939691713,8.17519003,169.26,169.2,8.17519003]
[1729939692123,2.9571,169.26,169.22,8.17519003]
[1729939692613,8.17519003,169.24,169.18,4.5]
[1729939692923,8.17519003,169.24,169.19,8.17519003]
[1729939693121,4.5,169.27,169.21,8.17519003]
[1729939693330,8.17519003,169.26,169.21,8.17519003]
[1729939694017,2.9573,169.25,169.21,8.17519003]
[1729939695117,2.9573,169.25,169.2,8.17519003]
[1729939695312,11.13249003,169.25,169.2,8.17519003]
[1729939695522,2.9565,169.3,169.24,8.17519003]
[1729939695816,11.13169003,169.3,169.25,8.17519003]
[1729939696018,8.17519003,169.3,169.25,8.17519003]
[1729939696221,8.17519003,169.26,169.17,1.2494]
[1729939696524,1.2097,169.33,169.18,8.17519003]
[1729939696525,8.17519003,169.23,169.18,8.17519003]
[1729939696921,8.17519003,169.23,169.19,2.9583]
[1729939697119,2.9573,169.25,169.19,2.9583]
[1729939697322,4.5,169.27,169.17,1.2494]
[1729939697521,8.17519003,169.24,169.2,8.17519003]
[1729939700327,2.9571,169.26,169.2,8.17519003]
[1729939700328,11.13229003,169.26,169.2,8.17519003]
[1729939700529,4.5,169.27,169.21,8.17519003]
[1729939700731,8.17519003,169.26,169.21,8.17519003]
[1729939704729,11.13229003,169.26,169.21,8.17519003]
[1729939707528,4.5,169.28,169.21,8.17519003]
[1729939707721,8.17519003,169.25,169.21,8.17519003]
[1729939709436,8.17519003,169.25,169.2,11.13319003]
[1729939712939,8.17519003,169.25,169.2,2.958]
[1729939713141,8.17519003,169.25,169.2,11.13319003]
[1729939716835,11.13249003,169.25,169.2,8.17519003]
[1729939717842,8.17519003,169.25,169.2,8.17519003]
[1729939718043,2.9575,169.24,169.2,8.17519003]
[1729939719256,2.9575,169.24,169.18,4.2206]
[1729939719454,2.9575,169.24,169.2,8.17519003]
[1729939719855,2.9576,169.23,169.2,8.17519003]
[1729939722156,11.13259003,169.25,169.21,8.17519003]
[1729939725052,2.9566,169.29,169.24,8.17519003]
[1729939725658,2.9566,169.29,169.25,8.17519003]
[1729939725845,1.2097,169.33,169.26,8.17519003]
[1729939726049,8.17519003,169.32,169.26,8.17519003]
[1729939726557,8.17519003,169.31,169.26,11.13229003]
[1729939727552,11.13139003,169.31,169.26,11.13229003]
[1729939729259,11.13139003,169.31,169.26,8.17519003]
[1729939730253,8.17519003,169.31,169.26,8.17519003]
[1729939730455,8.17519003,169.31,169.26,11.13229003]
[1729939731464,2.9562,169.32,169.28,8.17519003]
[1729939731664,8.17519003,169.32,169.28,8.17519003]
[1729939733264,11.13119003,169.32,169.28,8.17519003]
[1729939733463,8.17519003,169.31,169.27,2.9569]
[1729939734264,5.7097,169.33,169.28,2.9567]
[1729939734568,8.17519003,169.31,169.26,8.17519003]
[1729939734870,11.13159003,169.31,169.25,11.13239003]
[1729939735668,2.9564,169.3,169.25,11.13239003]
[1729939736555,8.17519003,169.27,169.23,4.2251]
[1729939736754,8.17519003,169.25,169.22,1.2063]
[1729939736955,8.17519003,169.25,169.21,12.67519003]
[1729939738266,2.9572,169.26,169.21,12.67519003]
[1729939738459,8.17519003,169.25,169.21,12.67519003]
[1729939741670,8.17519003,169.24,169.17,2.5318]
[1729939741870,8.17519003,169.23,169.2,1.47922301]
[1729939742172,8.17519003,169.23,169.18,11.13349003]
[1729939742359,8.17519003,169.23,169.19,1.47939608]
[1729939742560,8.17519003,169.23,169.18,11.13349003]
[1729939742762,8.17519003,169.23,169.19,1.47944281]
[1729939743058,8.17519003,169.23,169.18,11.13349003]
[1729939743264,8.17519003,169.23,169.19,1.47942931]
[1729939743475,8.17519003,169.23,169.18,11.13349003]
[1729939743665,8.17519003,169.23,169.19,1.47943082]
[1729939743869,8.17519003,169.23,169.2,1.47943082]
[1729939744065,4.5,169.25,169.2,8.17519003]
[1729939744263,8.17519003,169.27,169.22,8.17519003]
[1729939744871,8.17519003,169.27,169.22,11.13289003]
[1729939746873,2.9568,169.28,169.22,11.13289003]
[1729939747067,2.9568,169.28,169.24,8.17519003]
[1729939748167,8.17519003,169.26,169.21,4.5]
[1729939748375,8.17519003,169.26,169.22,1.47924085]
[1729939748671,8.17519003,169.26,169.21,15.63309003]
[1729939748873,8.17519003,169.26,169.22,1.47931952]
[1729939749073,8.17519003,169.26,169.21,15.63309003]
[1729939749373,4.5,169.26,169.16,4.5]
[1729939749562,8.17519003,169.22,169.17,9.65469001]
[1729939749764,8.17519003,169.22,169.18,1.47949998]
[1729939749962,8.17519003,169.22,169.19,1.47949998]
[1729939750160,8.17519003,169.22,169.17,8.17519003]
[1729939750673,8.17519003,169.22,169.18,1.47954365]
[1729939750873,8.17519003,169.22,169.19,1.47954365]
[1729939751064,8.17519003,169.22,169.17,8.17519003]
[1729939751262,8.17519003,169.22,169.18,1.47954314]
[1729939751476,8.17519003,169.22,169.19,1.47954314]
[1729939751676,8.17519003,169.22,169.17,11.13369003]
[1729939751974,8.17519003,169.22,169.18,1.47957014]
[1729939752274,8.17519003,169.22,169.17,11.13369003]
[1729939752475,8.17519003,169.22,169.18,1.47964099]
[1729939752767,8.17519003,169.22,169.17,11.13369003]
[1729939752966,8.17519003,169.22,169.18,1.47967046]
[1729939753167,8.17519003,169.22,169.17,11.13369003]
[1729939753368,8.17519003,169.22,169.18,1.47967226]
[1729939753568,8.17519003,169.22,169.17,11.13369003]
[1729939753770,8.17519003,169.22,169.18,1.47966431]
[1729939754076,8.17519003,169.22,169.17,11.13369003]
[1729939754273,8.17519003,169.22,169.18,1.47965526]
[1729939754465,2.9584,169.19,169.13,2.9592]
[1729939754664,2.9584,169.19,169.14,9.654869]
[1729939754665,8.17519003,169.19,169.14,9.654869]
[1729939754870,8.17519003,169.19,169.15,1.47967897]
[1729939755063,8.17519003,169.19,169.14,8.17519003]
[1729939755267,11.13359003,169.19,169.15,1.47987177]
[1729939755467,11.13359003,169.19,169.14,8.17519003]
[1729939755663,8.17519003,169.19,169.14,8.17519003]
[1729939756367,4.5,169.22,169.17,8.17519003]
[1729939756577,8.17519003,169.23,169.18,8.17519003]
[1729939758176,8.17519003,169.21,169.13,4.5]
[1729939758375,8.17519003,169.21,169.16,8.17519003]
[1729939758568,8.17519003,169.2,169.17,1.47967471]
[1729939758766,8.17519003,169.2,169.16,8.17519003]
[1729939758975,8.17519003,169.2,169.17,1.47967471]
[1729939759268,8.17519003,169.2,169.13,4.5]
[1729939759470,8.17519003,169.2,169.16,8.17519003]
[1729939759670,8.17519003,169.2,169.16,11.13399003]
[1729939761164,12.67519003,169.2,169.16,2.9588]
[1729939761366,12.67519003,169.2,169.07,2.9603]
[1729939761367,2.9592,169.14,169.07,2.9603]
[1729939761570,12.67519003,169.13,169.07,8.17519003]
[1729939761770,8.17519003,169.13,169.07,8.17519003]
[1729939763272,8.17519003,169.13,169.08,2.9602]
[1729939763677,4.5,169.14,169.05,1.2178]
[1729939763678,4.5,169.14,169.09,8.17519003]
[1729939763874,12.67519003,169.14,169.1,2.9598]
[1729939764778,12.67519003,169.14,169.08,2.9602]
[1729939764976,8.17519003,169.12,169.08,11.13539003]
[1729939766773,8.17519003,169.13,169.08,11.13539003]
[1729939766973,4.5,169.14,169.09,8.17519003]
[1729939767175,12.67519003,169.14,169.09,8.17519003]
[1729939768374,8.17519003,169.14,169.11,2.9596]
[1729939768575,8.17519003,169.15,169.11,8.17519003]
[1729939768982,3.01982019,169.25,169.11,8.17519003]
[1729939769178,8.17519003,169.19,169.15,2.9589]
[1729939769371,12.67519003,169.19,169.15,2.9589]
[1729939771682,4.5,169.19,169.15,2.9589]
[1729939771880,12.67519003,169.19,169.15,2.9589]
[1729939772082,12.67519003,169.19,169.09,4.5]
[1729939772083,8.17519003,169.18,169.09,4.5]
[1729939772382,8.17519003,169.18,169.11,8.17519003]
[1729939772779,12.67519003,169.18,169.11,8.17519003]
[1729939773386,4.5,169.18,169.14,8.17519003]
[1729939774288,4.5,169.18,169.15,2.9589]
[1729939776384,4.5,169.18,169.09,4.5]
[1729939776385,8.17519003,169.17,169.13,2.9593]
[1729939778487,4.5,169.18,169.14,2.9591]
[1729939778691,8.17519003,169.17,169.14,2.9591]
[1729939779288,8.17519003,169.17,169.12,8.17519003]
[1729939779489,12.67519003,169.18,169.15,2.959]
[1729939780692,8.17519003,169.18,169.15,2.959]
[1729939782297,4.5,169.19,169.15,2.959]
[1729939782492,8.17519003,169.18,169.15,2.959]
[1729939783393,4.5,169.19,169.13,8.17519003]
[1729939783698,12.67519003,169.2,169.16,2.9587]
[1729939784197,8.17519003,169.2,169.16,2.9587]
[1729939784491,4.5,169.21,169.15,8.17519003]
[1729939784692,8.17519003,169.25,169.19,8.17519003]
[1729939785085,8.17519003,169.25,169.22,2.9576]
[1729939786497,8.17519003,169.25,169.19,8.17519003]
[1729939786498,8.17519003,169.25,169.21,2.958]
[1729939786690,8.17519003,169.25,169.19,8.17519003]
[1729939788300,8.17519003,169.25,169.21,2.9579]
[1729939791396,8.17519003,169.24,169.21,2.9579]
[1729939793497,2.9569,169.27,169.21,2.9579]
[1729939793698,8.17519003,169.25,169.21,2.9579]
[1729939795898,8.17519003,169.27,169.22,2.9576]
[1729939796503,8.17519003,169.28,169.23,11.13269003]
[1729939797605,8.17519003,169.28,169.24,2.9574]
[1729939799709,1.2349,169.34,169.23,8.17519003]
[1729939800007,8.17519003,169.29,169.26,2.9571]
[1729939800697,2.9562,169.31,169.26,2.9571]
[1729939800698,11.13139003,169.31,169.26,2.9571]
[1729939801906,8.17519003,169.31,169.27,2.9568]
[1729939803807,4.5,169.34,169.3,11.13159003]
[1729939803999,235.46126313,169.35,169.3,11.13159003]
[1729939804195,232.50566313,169.35,169.3,8.17519003]
[1729939804394,224.3304731,169.35,169.31,2.9562]
[1729939804704,224.3304731,169.35,169.31,8.17519003]
[1729939804898,224.3304731,169.35,169.27,1.2344]
[1729939804899,224.3304731,169.35,169.32,8.17519003]
[1729939805199,8.17519003,169.4,169.27,1.2344]
[1729939805397,8.17519003,169.36,169.31,2.956]
[1729939805710,8.17519003,169.36,169.32,4.5]
[1729939806702,1.3064,169.42,169.32,15.63119003]
[1729939806903,8.17519003,169.4,169.34,8.17519003]
[1729939807609,8.17519003,169.41,169.36,8.17519003]
[1729939807808,12.67519003,169.42,169.36,8.17519003]
[1729939809400,4.5,169.42,169.36,11.13049003]
[1729939809598,8.17519003,169.41,169.36,11.13049003]
[1729939809802,227.1681204,169.46,169.39,2.9548]
[1729939809998,8.17519003,169.44,169.4,8.17519003]
[1729939810203,236.88961043,169.46,169.41,8.17519003]
[1729939810407,232.38961043,169.46,169.41,8.17519003]
[1729939810908,232.38961043,169.46,169.41,11.12959003]
[1729939811502,8.17519003,169.45,169.41,11.12959003]
[1729939812002,2.9536,169.47,169.41,11.12959003]
[1729939812208,8.17519003,169.46,169.41,11.12959003]
[1729939812607,8.17519003,169.47,169.41,11.12959003]
[1729939813008,2.4806,169.53,169.43,8.17519003]
[1729939813303,8.17519003,169.5,169.45,8.17519003]
[1729939813907,8.17519003,169.47,169.44,4.5]
[1729939814107,8.17519003,169.47,169.42,8.17519003]
[1729939814311,8.17519003,169.46,169.41,7.0306]
[1729939814503,8.17519003,169.44,169.41,4.5]
[1729939815016,8.17519003,169.45,169.41,7.4545]
[1729939815811,8.17519003,169.45,169.41,15.62969003]
[1729939818305,4.5,169.48,169.43,8.17519003]
[1729939818520,8.17519003,169.47,169.43,8.17519003]
[1729939820709,8.17519003,169.48,169.43,11.12929003]
[1729939823823,8.17519003,169.48,169.44,8.17519003]
[1729939827312,8.17519003,169.48,169.44,11.12899003]
[1729939828619,8.17519003,169.49,169.44,8.17519003]
[1729939829010,8.17519003,169.49,169.46,2.9536]
[1729939834125,8.17519003,169.49,169.45,8.17519003]
[1729939834624,11.12789003,169.51,169.45,8.17519003]
[1729939834811,8.17519003,169.51,169.45,8.17519003]
[1729939835017,8.17519003,169.52,169.46,8.17519003]
[1729939836215,8.17519003,169.52,169.48,2.9532]
[1729939838718,8.17519003,169.52,169.48,11.12839003]
[1729939839523,15.60729003,169.55,169.5,2.9529]
[1729939839727,241.11675638,169.57,169.51,8.17519003]
[1729939840031,249.29194641,169.57,169.51,8.17519003]
[1729939841224,8.17519003,169.52,169.42,3.7859]
[1729939841427,4.48,169.53,169.43,8.17519003]
[1729939841723,8.17519003,169.48,169.43,8.17519003]
[1729939843324,8.17519003,169.48,169.45,2.9536]
[1729939843524,8.17519003,169.49,169.45,2.9536]
[1729939844820,8.17519003,169.48,169.42,3.7859]
[1729939845022,4.48,169.49,169.39,8.17519003]
[1729939845323,8.17519003,169.42,169.38,8.17519003]
[1729939845520,8.17519003,169.42,169.37,4.48]
[1729939846125,8.17519003,169.42,169.38,2.955]
[1729939848019,8.17519003,169.44,169.39,11.12979003]
[1729939848424,4.48,169.48,169.39,8.17519003]
[1729939848627,8.17519003,169.44,169.4,2.9545]
[1729939852627,8.17519003,169.42,169.4,2.9545]
[1729939852833,11.12969003,169.41,169.33,8.17519003]
[1729939853027,8.17519003,169.38,169.33,8.17519003]
[1729939853426,8.17519003,169.4,169.32,2.956]
[1729939853626,8.17519003,169.4,169.34,8.17519003]
[1729939854237,15.72934385,169.42,169.33,1.3174]
[1729939855330,15.72934385,169.42,169.35,2.9555]
[1729939857140,15.72934385,169.42,169.36,2.9553]
[1729939857436,20.20934385,169.42,169.36,2.9553]
[1729939858240,17.25504385,169.42,169.36,2.9553]
[1729939858536,17.25504385,169.42,169.37,2.9551]
[1729939860140,17.25504385,169.42,169.34,14.07424385]
[1729939860440,4.48,169.42,169.29,17.25504385]
[1729939860641,12.77504385,169.38,169.29,17.25504385]
[1729939860938,17.25504385,169.38,169.32,2.9559]
[1729939861529,4.48,169.38,169.29,12.77504385]
[1729939861733,17.25504385,169.38,169.33,2.9558]
[1729939863436,17.25504385,169.38,169.29,12.77504385]
[1729939865143,17.25504385,169.38,169.33,2.9559]
[1729939865436,5.6888,169.41,169.31,12.77504385]
[1729939865640,5.6888,169.41,169.32,4.48]
[1729939866237,5.6888,169.41,169.35,2.9554]
[1729939867437,4.48,169.43,169.33,12.77504385]
[1729939867937,4.48,169.43,169.34,2.4695]
[1729939868744,12.77504385,169.45,169.34,2.4695]
[1729939868933,4.48,169.44,169.36,12.77504385]
[1729939869133,4.48,169.44,169.36,17.25504385]
[1729939869541,4.48,169.44,169.39,2.9547]
[1729939869939,12.77504385,169.45,169.39,2.9547]
[1729939870245,8.6512,169.48,169.41,2.9543]
[1729939870445,8.6512,169.48,169.4,12.77504385]
[1729939870644,5.6979,169.48,169.4,17.25504385]
[1729939870833,1.2179,169.48,169.4,17.25504385]
[1729939871732,1.2179,169.48,169.43,2.954]
[1729939871933,1.2179,169.48,169.4,17.25504385]
[1729939873348,1.2179,169.48,169.42,2.9543]
[1729939875745,1.2179,169.48,169.43,2.9541]
[1729939875949,1.2179,169.48,169.41,4.48]
[1729939876246,1.2179,169.48,169.41,17.25504385]
[1729939876649,17.25504385,169.51,169.41,17.25504385]
[1729939877247,20.20784385,169.51,169.45,2.9537]
[1729939878043,20.20784385,169.51,169.46,2.9536]
[1729939878444,17.25504385,169.51,169.41,17.25504385]
[1729939878947,17.25504385,169.51,169.42,6.65191448]
[1729939879252,17.25504385,169.51,169.42,2.5057]
[1729939879444,17.25504385,169.51,169.47,2.9534]
[1729939879644,17.25504385,169.51,169.42,2.5057]
[1729939881142,17.25504385,169.51,169.46,2.9536]
[1729939881351,20.20744385,169.53,169.46,2.9536]
[1729939881550,1.2304,169.54,169.43,12.77504385]
[1729939881850,18.48544385,169.54,169.43,12.77504385]
[1729939882348,8.6626,169.54,169.47,8.16336641]
[1729939882543,8.16336641,169.52,169.47,8.16336641]
[1729939883345,1.2304,169.54,169.47,8.16336641]
[1729939883551,236.63675638,169.57,169.5,8.16336641]
[1729939883552,12.64336641,169.55,169.5,8.16336641]
[1729939883847,12.64336641,169.55,169.52,2.9525]
[1729939884151,236.63675638,169.57,169.52,2.9525]